bitfinex-derivatives/quotes_ETHF0:USTF0_20241231
["timestamp","ask_amount","ask_price","bid_price","bid_amount"]
[1735651542021,0.2929,3419.4,3419.3,0.2929]
[1735651542519,0.5504,3419.6,3419.5,0.29289]
[1735651542714,0.82336,3419.9,3419.8,0.29286]
[1735651542924,2.83112515,3420.1,3420.0,0.29285]
[1735651543220,3.12396515,3420.1,3420.0,41.09285]
[1735651543420,3.12396515,3420.1,3420.0,40.8]
[1735651543721,0.83504,3420.1,3420.0,41.09285]
[1735651544325,0.5276,3420.4,3420.0,40.8]
[1735651544512,0.29283,3420.3,3420.2,0.29282]
[1735651544715,0.29284,3420.1,3420.0,41.64774]
[1735651544910,0.29284,3420.1,3420.0,41.09284]
[1735651545117,0.29283,3420.2,3420.1,0.29283]
[1735651545921,0.29283,3420.3,3420.2,0.29282]
[1735651546720,0.29284,3420.1,3420.0,41.09284]
[1735651547820,0.29284,3420.1,3420.0,40.8]
[1735651548222,0.29284,3420.1,3420.0,41.09285]
[1735651548916,0.29285,3420.0,3419.9,3.2078]
[1735651549121,0.85085,3420.0,3419.9,3.2078]
[1735651549714,0.85085,3420.0,3419.5,44.5572]
[1735651549913,0.29285,3420.1,3420.0,0.29284]
[1735651550714,0.29285,3420.0,3419.9,3.50065]
[1735651551525,3.50062,3420.4,3420.3,0.29282]
[1735651551714,3.50062,3420.4,3419.9,3.2078]
[1735651551911,0.29283,3420.3,3420.2,0.29282]
[1735651552820,3.2078,3420.4,3419.9,3.7317]
[1735651553025,0.29284,3420.2,3420.1,0.29283]
[1735651553215,3.2078,3420.4,3419.9,3.7317]
[1735651553415,3.50062,3420.4,3420.3,0.29282]
[1735651557119,0.29284,3420.1,3420.0,0.29285]
[1735651557319,0.29285,3420.0,3419.9,3.50065]
[1735651558324,0.29287,3419.8,3419.7,0.29286]
[1735651558727,3.2078,3420.4,3419.5,45.7712]
[1735651559030,0.29286,3420.0,3419.9,0.29284]
[1735651560127,0.29284,3420.1,3420.0,0.29283]
[1735651560829,3.7438,3420.4,3419.9,3.2078]
[1735651561022,0.29283,3420.2,3420.1,0.29282]
[1735651561421,0.536,3420.4,3420.3,0.29282]
[1735651561717,2.58173515,3420.5,3420.4,0.29281]
[1735651561718,2.28892515,3420.5,3420.4,0.29281]
[1735651561923,2.28892515,3420.5,3420.4,3.50061]
[1735651562224,3.44733293,3420.6,3420.5,0.2928]
[1735651562726,3.44733293,3420.6,3420.5,5.2928]
[1735651562921,3.11425808,3420.6,3420.5,46.0928]
[1735651563129,3.88913799,3420.8,3420.5,45.8]
[1735651563424,3.88913799,3420.8,3420.7,2.64059014]
[1735651563425,0.52883994,3420.8,3420.7,2.64059014]
[1735651563629,0.5581,3421.6,3421.5,0.29272]
[1735651563829,0.5581,3421.6,3421.5,3.50052]
[1735651564434,5.74555488,3421.9,3421.5,5.55560014]
[1735651564627,5.74555488,3421.9,3421.8,0.29269]
[1735651565035,5.74555488,3421.9,3421.6,40.8]
[1735651565327,5.2278085,3422.3,3421.7,0.2927]
[1735651565328,0.29269,3421.8,3421.7,0.2927]
[1735651565731,5.2278085,3422.3,3421.7,0.2927]
[1735651566036,5.2278085,3422.3,3421.6,40.8]
[1735651566335,0.29267,3422.1,3421.9,0.29268]
[1735651566835,0.29267,3422.0,3421.8,0.29269]
[1735651567235,5.2278085,3422.3,3421.6,40.8]
[1735651567436,5.2278085,3422.3,3421.8,0.29268]
[1735651567736,0.29268,3422.0,3421.8,0.29268]
[1735651567933,5.2278085,3422.3,3421.6,40.8]
[1735651568132,0.29268,3422.0,3421.7,0.2927]
[1735651568437,0.29268,3422.0,3421.8,0.29269]
[1735651569039,0.29269,3421.9,3421.7,0.2927]
[1735651569537,0.29271,3421.7,3421.5,3.50051]
[1735651569735,0.5576,3421.6,3421.5,3.50051]
[1735651569938,0.85031,3421.6,3421.5,3.2078]
[1735651570244,1.37611,3421.6,3421.5,3.2078]
[1735651570534,1.37611,3421.6,3420.9,6.87734043]
[1735651570535,0.7318,3421.5,3420.9,4.52954029]
[1735651570842,0.29279,3420.7,3420.6,4.52954029]
[1735651571437,0.29279,3420.7,3420.6,1.29534029]
[1735651571741,0.29279,3420.7,3420.6,0.45824029]
[1735651571936,0.29279,3420.7,3420.3,6.79431044]
[1735651572143,3.2078,3420.6,3420.0,50.15193059]
[1735651572346,0.29284,3420.1,3420.0,40.8]
[1735651572537,0.29284,3420.1,3420.0,41.09285]
[1735651572839,0.29283,3420.2,3420.1,0.29284]
[1735651573035,0.29281,3420.5,3420.3,0.29282]
[1735651573229,0.29281,3420.4,3420.3,0.29282]
[1735651573427,0.29281,3420.4,3420.0,40.8]
[1735651573428,3.2078,3420.6,3420.0,40.8]
[1735651573631,0.2928,3420.6,3420.4,0.29281]
[1735651573838,0.2928,3420.5,3420.1,0.5437]
[1735651574040,0.2928,3420.5,3420.4,0.29281]
[1735651574233,0.29279,3420.7,3420.5,0.2928]
[1735651574435,0.29278,3420.8,3420.4,0.29281]
[1735651574634,0.2928,3420.5,3420.4,0.29281]
[1735651575742,0.5482,3420.8,3420.3,0.29282]
[1735651575936,0.29281,3420.4,3420.3,0.29282]
[1735651576837,3.93977,3420.7,3420.0,40.8]
[1735651577036,0.29284,3420.1,3420.0,40.8]
[1735651577346,0.73197,3420.7,3420.1,0.29283]
[1735651577537,0.29283,3420.2,3420.1,0.29284]
[1735651577735,3.2078,3420.6,3420.0,40.8]
[1735651577936,0.29283,3420.2,3420.1,0.29284]
[1735651578430,0.73197,3420.7,3420.0,40.8]
[1735651578643,0.29283,3420.2,3420.1,0.29283]
[1735651578840,0.29282,3420.3,3420.2,0.29282]
[1735651579454,0.5482,3420.8,3420.0,40.8]
[1735651579773,0.2928,3420.6,3420.5,0.2928]
[1735651580078,0.5482,3420.8,3420.3,2.87020014]
[1735651580267,4.02637,3420.9,3420.8,0.29278]
[1735651580465,0.29278,3420.8,3420.7,0.29278]
[1735651580852,0.29278,3420.8,3420.7,41.09278]
[1735651582063,4.02637,3420.9,3420.8,0.29278]
[1735651582267,3.7336,3420.9,3420.8,0.29278]
[1735651582464,3.2078,3420.9,3420.8,0.29278]
[1735651583369,3.50057,3420.9,3420.8,0.29278]
[1735651583970,3.2078,3420.9,3420.8,0.29278]
[1735651584364,0.29276,3421.1,3421.0,0.29275]
[1735651584567,0.83434,3421.3,3421.2,0.29274]
[1735651584970,0.5416,3421.3,3421.2,0.29274]
[1735651585276,0.29275,3421.2,3421.1,0.29274]
[1735651585582,0.29274,3421.3,3421.2,0.29273]
[1735651586159,1.6289,3421.6,3421.1,0.5246]
[1735651586461,0.29274,3421.4,3421.3,0.29272]
[1735651587143,0.7318,3421.5,3421.0,3.2078]
[1735651587343,0.29275,3421.1,3421.0,0.29276]
[1735651587744,1.6289,3421.6,3420.8,0.73195]
[1735651587940,1.6289,3421.6,3420.7,41.3195]
[1735651587941,0.29275,3421.2,3421.1,0.29274]
[1735651588339,1.6289,3421.6,3420.7,41.3195]
[1735651588545,1.6289,3421.6,3421.2,0.29273]
[1735651588546,0.29274,3421.3,3421.2,0.29273]
[1735651590346,1.6289,3421.6,3421.1,0.29275]
[1735651590347,0.29276,3421.2,3421.1,0.29275]
[1735651592342,0.29274,3421.3,3421.2,0.29273]
[1735651593346,0.29274,3421.4,3421.3,0.29273]
[1735651593844,0.29275,3421.3,3421.2,0.29274]
[1735651595651,0.29273,3421.4,3421.3,0.29272]
[1735651595851,0.83882,3421.6,3421.5,0.29272]
[1735651596456,0.29272,3421.6,3421.5,0.29272]
[1735651597752,0.29271,3421.7,3421.6,0.2927]
[1735651599050,0.29271,3421.7,3421.3,1.28683]
[1735651599051,0.29273,3421.6,3421.5,0.29271]
[1735651599350,0.29271,3421.7,3421.6,0.2927]
[1735651601454,0.80818,3422.0,3421.9,0.29268]
[1735651602655,0.5155,3422.0,3421.9,0.29268]
[1735651602855,0.80817,3422.0,3421.9,41.09268]
[1735651603360,0.5155,3422.0,3421.9,41.09268]
[1735651603555,4.1314085,3422.3,3421.9,41.09268]
[1735651603859,4.4240585,3422.3,3422.2,0.29266]
[1735651604158,0.29267,3422.2,3422.1,0.29266]
[1735651604363,0.525,3422.2,3422.1,0.29266]
[1735651604861,0.81766,3422.2,3422.1,0.29266]
[1735651605860,0.525,3422.2,3421.7,1.194]
[1735651606058,0.29269,3421.8,3421.7,1.194]
[1735651606565,0.73167,3422.1,3421.4,3.2078]
[1735651606566,0.29271,3421.7,3421.6,0.2927]
[1735651607857,0.29273,3421.5,3421.4,0.29272]
[1735651608561,0.29271,3421.7,3421.6,0.2927]
[1735651608956,0.29273,3421.5,3421.4,0.29272]
[1735651614062,0.29271,3421.7,3421.6,0.2927]
[1735651614460,0.29271,3421.7,3421.6,40.8]
[1735651614461,0.2927,3421.7,3421.6,40.8]
[1735651615663,0.2927,3421.7,3421.6,41.09271]
[1735651617364,1.0605,3422.0,3421.6,40.8]
[1735651617577,0.2927,3421.8,3421.7,0.29269]
[1735651617870,1.7922,3422.0,3421.6,40.8]
[1735651617871,0.2927,3421.7,3421.6,41.0927]
[1735651618065,0.29273,3421.5,3421.4,0.29272]
[1735651620571,0.81622,3421.6,3421.5,0.29272]
[1735651620965,0.2927,3421.8,3421.1,1.7493]
[1735651621166,0.2927,3421.8,3421.7,0.2927]
[1735651622480,0.29269,3421.9,3421.8,0.29268]
[1735651623674,0.29268,3422.0,3421.9,0.29267]
[1735651624073,0.5271,3422.1,3421.7,0.5424]
[1735651624275,0.81977,3422.1,3422.0,0.29267]
[1735651624580,0.5271,3422.1,3421.7,0.5424]
[1735651624879,0.29269,3422.0,3421.9,0.29267]
[1735651625876,0.5271,3422.1,3421.7,0.5424]
[1735651626079,0.29269,3421.9,3421.8,0.29268]
[1735651628182,0.29269,3421.8,3421.7,0.8351]
[1735651629175,0.29269,3421.8,3421.7,0.5424]
[1735651629479,0.29273,3421.5,3421.4,0.29272]
[1735651629879,0.29271,3421.7,3421.6,0.29269]
[1735651630078,0.29269,3421.8,3421.7,0.29269]
[1735651630882,3.44584142,3421.9,3421.8,0.29269]
[1735651630883,3.73853142,3421.9,3421.8,0.29269]
[1735651632487,0.29269,3421.9,3421.8,0.29269]
[1735651632784,0.29269,3421.9,3421.8,0.82149]
[1735651634887,3.97294142,3422.1,3421.8,0.5288]
[1735651635086,0.29268,3422.0,3421.9,0.29267]
[1735651635986,0.29268,3422.0,3421.9,41.09267]
[1735651636886,3.73851142,3422.1,3422.0,0.29267]
[1735651643584,3.44584142,3422.1,3422.0,0.29267]
[1735651644084,3.73851142,3422.1,3422.0,0.29267]
[1735651644791,3.44584142,3422.1,3422.0,0.29267]
[1735651644992,3.44584142,3422.2,3421.9,44.0078]
[1735651645192,3.44584142,3422.2,3422.1,0.29267]
[1735651645491,3.73850142,3422.2,3422.1,0.29267]
[1735651646691,0.29266,3422.2,3422.1,0.29267]
[1735651646887,4.36944992,3422.3,3421.9,44.0078]
[1735651647089,4.36944992,3422.3,3422.2,0.29266]
[1735651648192,4.66209992,3422.3,3422.2,0.29266]
[1735651648587,1.2162585,3422.3,3422.2,0.29266]
[1735651648789,0.9236085,3422.3,3422.2,0.29266]
[1735651650398,0.9236085,3422.3,3422.2,4.52680283]
[1735651650592,0.9236085,3422.3,3422.2,1.31900283]
[1735651650895,0.9236085,3422.3,3422.2,4.52680283]
[1735651651396,2.24260133,3422.3,3422.2,3.50046]
[1735651651596,2.24260133,3422.3,3422.2,0.29266]
[1735651652199,1.2162585,3422.3,3422.2,0.29266]
[1735651652991,0.9236085,3422.3,3422.2,0.29266]
[1735651653203,0.9236085,3422.3,3422.2,3.50046]
[1735651653701,0.9236085,3422.3,3422.2,44.30046]
[1735651655596,1.2162585,3422.3,3422.2,44.0078]
[1735651655996,2.3096585,3422.3,3422.2,44.30046]
[1735651657697,2.3096585,3422.3,3422.2,44.0078]
[1735651659398,2.3096585,3422.3,3422.2,40.8]
[1735651659697,2.3096585,3422.3,3421.3,0.29273]
[1735651659698,0.29273,3421.4,3421.3,0.29273]
[1735651659894,0.29273,3421.3,3421.2,3.50054]
[1735651660094,0.5448,3421.3,3421.2,3.50054]
[1735651660300,0.83753,3421.3,3421.2,3.50054]
[1735651660501,0.83753,3421.3,3421.2,44.30054]
[1735651660695,0.5448,3421.3,3421.2,44.30054]
[1735651661094,1.38221,3421.6,3421.5,0.29272]
[1735651661496,0.525,3421.6,3421.5,0.29272]
[1735651661696,0.5154,3421.8,3421.7,0.2927]
[1735651661901,3.2078,3422.0,3421.5,1.185]
[1735651662099,1.0895,3422.1,3422.0,0.29267]
[1735651662500,1.38217,3422.1,3422.0,0.29267]
[1735651663097,1.0895,3422.1,3421.6,3.93957]
[1735651663293,1.0895,3422.1,3421.9,0.29267]
[1735651663500,0.29268,3422.0,3421.6,3.93957]
[1735651663694,0.29268,3422.0,3421.9,0.29268]
[1735651664393,0.29268,3422.0,3421.6,3.2078]
[1735651664394,0.2927,3421.7,3421.6,3.5005]
[1735651665401,4.53797194,3422.1,3421.6,3.2078]
[1735651665607,0.29267,3422.0,3421.9,0.29268]
[1735651666100,4.53797194,3422.1,3421.6,3.2078]
[1735651666306,0.2927,3421.8,3421.7,0.29269]
[1735651666706,4.53797194,3422.1,3421.6,3.2078]
[1735651666904,0.5301,3421.7,3421.6,3.5005]
[1735651667102,0.8228,3421.7,3421.6,3.5005]
[1735651667500,0.5301,3421.7,3421.6,3.5005]
[1735651668908,4.53797194,3422.1,3422.0,0.29267]
[1735651669099,4.01297194,3422.1,3422.0,0.29267]
[1735651669296,4.01297194,3422.1,3422.0,3.50047]
[1735651669297,3.44847194,3422.1,3422.0,3.50047]
[1735651670002,3.44847194,3422.1,3422.0,44.30047]
[1735651670201,3.44847194,3422.1,3422.0,47.81769483]
[1735651670401,0.9236085,3422.3,3422.2,0.29266]
[1735651671703,0.9236085,3422.3,3422.2,12.38856916]
[1735651672909,0.9236085,3422.3,3422.2,0.29266]
[1735651673406,0.9236085,3422.3,3422.2,0.83736]
[1735651675704,0.9236085,3422.3,3422.2,6.056709]
[1735651675908,3.44847194,3423.0,3422.9,0.2926]
[1735651676109,2.81208044,3423.0,3422.9,3.5004]
[1735651676311,3.2078,3427.1,3424.4,3.2078]
[1735651676515,0.29235,3425.8,3425.4,3.2078]
[1735651676808,6.6392,3426.8,3425.4,3.2078]
[1735651677007,6.6392,3426.8,3425.9,3.2078]
[1735651677208,6.6392,3426.8,3426.0,0.45537304]
[1735651677510,3.2078,3426.5,3425.5,3.2078]
[1735651677707,7.36987,3426.8,3425.1,3.50021]
[1735651677708,0.29236,3425.7,3425.1,3.50021]
[1735651677903,3.2078,3426.1,3425.1,3.2078]
[1735651678206,3.2078,3426.5,3425.2,2.33522483]
[1735651678411,0.29234,3425.9,3425.3,0.29239]
[1735651678613,0.29234,3425.9,3425.3,0.36557465]
[1735651678807,0.29235,3425.8,3425.2,2.62761483]
[1735651679114,8.2078,3426.5,3425.4,7.62743794]
[1735651679302,8.2078,3426.5,3425.5,3.57337563]
[1735651679508,8.2078,3426.5,3425.6,0.36557563]
[1735651679709,0.29235,3425.9,3425.7,0.36557563]
[1735651679905,0.29235,3425.9,3425.5,3.2078]
[1735651679906,0.29235,3425.9,3425.8,0.36557563]
[1735651680306,3.2078,3426.5,3425.8,0.36557563]
[1735651680505,3.2078,3426.5,3425.5,3.2078]
[1735651680506,0.29234,3426.0,3425.9,0.36557563]
[1735651680901,0.29234,3426.0,3425.5,3.50017]
[1735651681107,0.0038959,3426.0,3425.9,3.2078]
[1735651681313,0.0038959,3426.0,3425.9,3.86567767]
[1735651681616,0.0038959,3426.0,3425.9,6.2009025]
[1735651681811,0.0038959,3426.0,3425.9,46.63536483]
[1735651682207,0.0038959,3426.0,3425.9,44.30014]
[1735651682411,3.2078,3426.9,3425.9,44.0078]
[1735651682617,3.2078,3426.9,3426.6,0.29228]
[1735651682815,3.2078,3426.9,3426.7,0.36546561]
[1735651683005,3.2078,3426.9,3426.8,0.36546561]
[1735651683212,3.21846048,3427.5,3426.8,0.36546561]
[1735651683516,3.21846048,3427.5,3426.9,1.65446561]
[1735651683716,0.29224,3427.1,3427.0,0.36546561]
[1735651683910,3.21846048,3427.5,3426.2,3.2078]
[1735651683911,1.6162,3427.4,3426.2,3.2078]
[1735651684110,0.73057,3427.3,3426.2,3.2078]
[1735651684304,0.29229,3426.6,3426.4,2.33522483]
[1735651684516,0.29228,3426.7,3426.5,6.74682654]
[1735651684813,0.29228,3426.7,3426.6,3.2078]
[1735651685415,0.29227,3426.7,3426.6,3.2078]
[1735651686417,1.6162,3427.4,3426.6,3.2078]
[1735651686618,0.29227,3426.7,3426.6,3.2078]
[1735651687019,1.6162,3427.4,3426.6,3.2078]
[1735651687218,0.29227,3426.7,3426.6,3.2078]
[1735651690819,0.29232,3426.2,3426.1,3.2078]
[1735651693420,0.29232,3426.2,3426.1,5.54302483]
[1735651693623,0.29232,3426.2,3426.1,3.2078]
[1735651698724,0.529,3426.5,3426.1,3.2078]
[1735651699120,0.29231,3426.3,3426.2,0.29231]
[1735651699319,0.29229,3426.5,3426.4,0.29229]
[1735651699722,0.5283,3426.6,3426.1,5.54302483]
[1735651700025,0.82058,3426.6,3426.5,3.2078]
[1735651701116,0.29228,3426.6,3426.5,3.2078]
[1735651701924,0.5485,3426.8,3426.0,3.2078]
[1735651702121,0.29232,3426.1,3426.0,3.2078]
[1735651702320,0.29232,3426.1,3426.0,3.50013]
[1735651702523,0.29232,3426.3,3426.2,0.29231]
[1735651702723,0.6002,3426.5,3426.0,3.2078]
[1735651703023,0.89249,3426.5,3426.4,3.2078]
[1735651703422,0.29229,3426.5,3426.4,3.2078]
[1735651703925,0.29229,3426.6,3426.5,0.29229]
[1735651704519,0.29229,3426.5,3426.4,3.50009]
[1735651705122,0.5485,3426.8,3426.4,3.2078]
[1735651705328,0.29229,3426.6,3426.5,0.29228]
[1735651705526,2.34588531,3427.5,3426.4,3.2078]
[1735651705732,2.34588531,3427.5,3426.2,2.33522483]
[1735651705733,0.73054,3427.4,3426.8,3.2078]
[1735651705925,0.29226,3426.9,3426.8,3.2078]
[1735651707229,0.29226,3426.9,3426.8,3.50006]
[1735651707642,0.29225,3427.0,3426.9,0.29225]
[1735651707818,0.29225,3427.1,3427.0,0.29224]
[1735651708023,2.34588531,3427.5,3426.9,1.1567]
[1735651708223,0.29224,3427.1,3427.0,0.29224]
[1735651708627,0.29225,3427.0,3426.9,0.5955]
[1735651709226,0.73054,3427.4,3426.9,0.5955]
[1735651709423,0.29225,3427.0,3426.9,0.5955]
[1735651709628,0.29224,3427.1,3427.0,0.29224]
[1735651709928,0.29225,3427.0,3426.9,0.88775]
[1735651710326,0.29225,3427.0,3426.9,0.5955]
[1735651710932,0.01066048,3427.5,3426.9,0.5955]
[1735651711128,0.2945372,3428.0,3427.9,0.05]
[1735651711437,0.2945372,3428.0,3427.9,5.83519483]
[1735651711438,0.0023772,3428.0,3427.9,5.83519483]
[1735651711622,0.0023772,3428.0,3427.9,3.49997]
[1735651711820,0.0023772,3428.0,3427.9,3.2078]
[1735651712231,0.0023772,3428.0,3427.9,6.42969483]
[1735651712421,0.9236085,3428.3,3427.9,6.13752483]
[1735651712627,0.9236085,3428.3,3428.2,0.29215]
[1735651712827,0.9236085,3428.3,3428.2,2.62737483]
[1735651713122,0.29204,3429.5,3428.2,49.39122483]
[1735651713326,0.29204,3429.5,3429.3,3.2078]
[1735651713528,1.7526,3430.3,3429.3,3.2078]
[1735651713726,0.292,3430.0,3429.7,3.2078]
[1735651714043,0.03679749,3429.9,3429.7,3.2078]
[1735651714537,0.03679749,3429.9,3429.8,0.29201]
[1735651714724,0.03679749,3429.9,3429.8,0.36510865]
[1735651714927,0.03679749,3429.9,3429.8,41.16510865]
[1735651715129,0.03679749,3429.9,3429.8,41.16511278]
[1735651715628,0.03679749,3429.9,3429.8,41.76271278]
[1735651716034,0.04023218,3429.9,3429.8,43.01871278]
[1735651716230,0.04023218,3429.9,3429.8,45.64594761]
[1735651716432,5.43393843,3479.1,3429.8,45.64594761]
[1735651716433,3.2078,3431.4,3429.8,49.98882483]
[1735651716635,3.2078,3431.4,3430.6,3.2078]
[1735651716636,2.33522483,3430.9,3430.6,3.2078]
[1735651716833,5.54302483,3430.9,3429.8,7.66968838]
[1735651717032,8.2078,3430.9,3429.9,0.36510682]
[1735651717229,0.29196,3430.4,3430.0,0.36510682]
[1735651717532,0.29195,3430.5,3430.3,3.2078]
[1735651717730,2.33522483,3430.9,3430.3,3.2078]
[1735651717941,0.29196,3430.4,3430.3,3.2078]
[1735651718237,5.54302483,3430.6,3429.9,3.2078]
[1735651718532,2.33522483,3430.0,3429.6,6.74682654]
[1735651718729,2.62724483,3429.7,3429.6,6.74682654]
[1735651718928,0.29206,3429.2,3429.1,7.6657583]
[1735651719125,1.23665522,3430.2,3429.1,8.03096649]
[1735651719337,2.33522483,3429.6,3429.1,7.6657583]
[1735651719635,0.29206,3429.2,3429.1,7.6657583]
[1735651719837,2.33522483,3429.6,3429.1,3.57301388]
[1735651720038,2.33522483,3429.9,3429.2,0.36521388]
[1735651720232,2.33522483,3430.2,3429.5,3.2078]
[1735651720541,2.33522483,3430.2,3429.9,3.2078]
[1735651720542,0.29199,3430.0,3429.9,3.2078]
[1735651720738,2.33522483,3430.2,3429.9,3.2078]
[1735651720937,1.308,3430.9,3429.9,3.2078]
[1735651720938,0.29197,3430.3,3429.9,3.2078]
[1735651721239,2.91802483,3430.5,3430.0,0.36510705]
[1735651721435,0.29196,3430.4,3430.3,3.2078]
[1735651722336,0.292,3429.9,3429.8,4.4579583]
[1735651722536,0.29198,3430.1,3429.8,4.8230971]
[1735651722836,2.33522483,3430.2,3429.7,7.6657583]
[1735651722837,0.32858022,3430.0,3429.7,7.6657583]
[1735651723035,0.29198,3430.1,3429.7,7.6657583]
[1735651723235,2.33522483,3430.2,3429.8,0.36512279]
[1735651723439,0.29199,3430.1,3430.0,3.2078]
[1735651724840,1.1328,3431.0,3430.0,3.57290815]
[1735651724841,0.29197,3430.3,3430.0,3.57290815]
[1735651725043,3.46802483,3431.0,3430.1,0.36510491]
[1735651725237,3.46802483,3431.0,3430.0,3.2078]
[1735651725540,0.29198,3430.1,3430.0,3.2078]
[1735651725934,2.33522483,3430.4,3429.6,4.4579583]
[1735651726132,0.29202,3429.7,3429.6,4.4579583]
[1735651726535,0.29203,3429.6,3429.5,3.2078]
[1735651727843,0.292,3430.0,3429.5,3.86499445]
[1735651728040,1.308,3430.5,3429.9,3.2078]
[1735651728237,0.29199,3430.0,3429.9,3.2078]
[1735651729345,0.033494,3430.0,3429.9,3.2078]
[1735651729545,0.033494,3430.0,3429.9,3.86492717]
[1735651730248,0.033494,3430.0,3429.9,44.66492717]
[1735651730943,0.033494,3430.0,3429.9,45.21822717]
[1735651731443,0.033494,3430.0,3429.9,47.18832483]
[1735651731638,0.29191,3431.1,3430.6,2.62715483]
[1735651731847,0.29191,3431.1,3431.0,3.2078]
[1735651734443,0.5636,3431.6,3431.0,5.54302483]
[1735651734647,3.2078,3432.6,3431.5,3.2078]
[1735651734949,7.24712483,3433.5,3432.2,3.2078]
[1735651735147,0.29176,3432.8,3432.6,3.2078]
[1735651735337,7.24712483,3433.5,3432.6,3.2078]
[1735651735543,0.29172,3433.2,3432.6,3.2078]
[1735651735743,0.29171,3433.4,3432.7,0.36485132]
[1735651735943,3.2078,3435.1,3433.3,3.2078]
[1735651736146,2.33522483,3434.8,3433.9,3.2078]
[1735651736344,0.2916,3434.6,3434.3,3.2078]
[1735651736544,2.77313219,3434.5,3433.9,3.2078]
[1735651736847,2.77313219,3434.1,3433.3,3.2078]
[1735651737050,0.29169,3433.6,3433.4,40.8]
[1735651737254,3.2078,3434.3,3433.4,40.8]
[1735651737443,3.2078,3434.7,3433.5,0.36473401]
[1735651737747,3.2078,3434.7,3433.4,43.57313219]
[1735651737748,0.29163,3434.4,3433.8,3.2078]
[1735651737951,3.2078,3434.7,3433.8,3.2078]
[1735651738246,3.2078,3434.1,3433.2,3.2078]
[1735651738437,0.2917,3433.4,3433.3,0.36476012]
[1735651738639,0.2917,3433.5,3433.3,0.36478391]
[1735651738845,0.29163,3434.3,3433.2,44.0078]
[1735651739050,2.77313219,3434.4,3433.3,3.2078]
[1735651739240,0.2917,3433.5,3433.3,3.2078]
[1735651739446,0.29168,3433.7,3433.3,3.2078]
[1735651739647,0.29163,3434.3,3433.4,0.36475271]
[1735651739856,7.77313219,3434.4,3433.5,0.36475271]
[1735651740046,2.77313219,3434.4,3433.3,3.2078]
[1735651740248,7.77313219,3434.4,3433.3,3.2078]
[1735651740551,2.77313219,3434.4,3433.4,3.57255528]
[1735651740752,2.77313219,3434.8,3434.2,3.2078]
[1735651740947,3.7719,3434.9,3434.3,0.36471028]
[1735651740948,0.2916,3434.6,3434.3,0.36471028]
[1735651741144,0.29161,3434.6,3434.4,0.36471028]
[1735651741445,0.2916,3434.6,3434.5,0.36471028]
[1735651741641,0.2916,3434.7,3434.5,0.7727169]
[1735651741850,0.2916,3434.7,3434.2,3.2078]
[1735651741851,0.29159,3434.7,3434.6,1.3561823]
[1735651742248,3.2078,3434.9,3434.6,1.3561823]
[1735651742552,0.29159,3434.8,3434.7,1.35584352]
[1735651742855,0.9236085,3435.0,3434.7,4.56331063]
[1735651743155,3.49938,3434.9,3434.8,1.35545798]
[1735651743351,6.27251219,3434.9,3434.8,1.35545798]
[1735651743647,0.72897,3434.8,3433.8,3.2078]
[1735651743847,3.2078,3434.9,3434.2,3.2078]
[1735651744253,0.29159,3434.8,3434.2,3.2078]
[1735651744655,0.29159,3434.8,3434.7,3.2078]
[1735651745354,0.29163,3434.3,3434.2,3.2078]
[1735651745553,0.87405533,3434.7,3434.2,3.2078]
[1735651745847,0.29163,3434.3,3434.2,3.2078]
[1735651746248,0.9236085,3435.0,3434.2,3.2078]
[1735651746443,0.29159,3434.7,3434.6,3.2078]
[1735651746649,2.77313219,3434.9,3434.1,3.2078]
[1735651746857,0.29163,3434.2,3434.1,2.506]
[1735651747057,0.29168,3433.7,3433.6,3.2078]
[1735651747257,0.729,3434.7,3433.6,3.2078]
[1735651747550,2.77313219,3434.9,3434.3,3.2078]
[1735651747551,0.29162,3434.4,3434.3,3.2078]
[1735651748058,5.98093219,3435.3,3434.3,3.2078]
[1735651748357,0.29161,3434.5,3434.4,1.1527]
[1735651748656,0.29161,3434.5,3434.4,4.3605]
[1735651749045,0.29164,3434.1,3433.6,3.2078]
[1735651749251,0.29168,3433.7,3433.6,3.7946]
[1735651749955,0.5441,3434.7,3433.6,3.7946]
[1735651749956,1.2731,3434.7,3433.6,3.7946]
[1735651750162,0.5441,3434.7,3434.1,3.2078]
[1735651750347,0.29163,3434.2,3434.1,3.2078]
[1735651750751,3.50218219,3434.5,3433.6,0.5868]
[1735651750956,3.2078,3433.8,3433.3,3.2078]
[1735651751154,0.2917,3433.4,3433.3,3.2078]
[1735651751957,3.2078,3434.2,3433.3,3.2078]
[1735651752152,3.2078,3434.2,3433.3,3.7938]
[1735651752347,3.2078,3434.2,3433.4,0.5685]
[1735651752545,0.29169,3433.6,3433.4,0.5685]
[1735651752750,3.2078,3434.2,3433.4,0.5685]
[1735651752949,0.29166,3434.0,3433.8,3.2078]
[1735651753258,2.77313219,3434.9,3433.8,3.2078]
[1735651753450,0.29163,3434.3,3434.2,3.2078]
[1735651753654,0.29163,3434.3,3434.2,3.79131934]
[1735651754059,0.29163,3434.3,3434.2,0.58351934]
[1735651754252,2.77313219,3434.9,3434.2,0.5835408]
[1735651754453,0.29162,3434.4,3434.3,0.5835408]
[1735651755059,0.29162,3434.4,3433.3,8.1118]
[1735651755060,5.0,3434.4,3433.3,8.1118]
[1735651755253,0.2917,3433.4,3433.3,3.2078]
[1735651755556,0.2917,3433.4,3433.3,4.43183568]
[1735651755755,3.2078,3434.2,3433.3,4.43183568]
[1735651755960,3.2078,3434.2,3433.4,0.76927]
[1735651756260,0.29166,3433.9,3433.8,3.20385146]
[1735651756460,0.29166,3433.9,3433.8,4.42788714]
[1735651756658,0.29166,3433.9,3433.8,1.22403568]
[1735651756956,3.2078,3434.6,3433.8,4.43183568]
[1735651757159,0.29161,3434.6,3434.3,3.2078]
[1735651757352,3.2078,3435.1,3434.4,0.76932037]